bitfinex/quotes_BTCUSD_20251021
["timestamp","ask_amount","ask_price","bid_price","bid_amount"]
[1761044204813,1.13593776,108740.0,108730.0,0.00265028]
[1761044205305,1.04611875,108740.0,108730.0,0.00265028]
[1761044211457,0.18392331,108750.0,108730.0,0.00265028]
[1761044211682,0.18392495,108740.0,108730.0,0.18449014]
[1761044211922,0.18392495,108740.0,108730.0,0.00054827]
[1761044213897,0.18392495,108740.0,108730.0,0.18449014]
[1761044214083,0.17975888,108750.0,108730.0,0.18449014]
[1761044214307,0.18392495,108740.0,108730.0,0.67666295]
[1761044214507,0.17975888,108750.0,108730.0,0.27430915]
[1761044214758,0.19308568,108760.0,108740.0,0.18392495]
[1761044214980,0.18389113,108760.0,108750.0,0.18390804]
[1761044215199,0.18389113,108760.0,108740.0,0.67609776]
[1761044215759,0.18390804,108750.0,108740.0,0.67609776]
[1761044215985,0.18389113,108760.0,108740.0,0.67609776]
[1761044216841,0.18390804,108750.0,108740.0,0.27374396]
[1761044217039,0.18390804,108750.0,108740.0,0.27549548]
[1761044217241,0.18390804,108750.0,108740.0,0.09157053]
[1761044217653,0.18389113,108760.0,108740.0,0.09157053]
[1761044217654,0.18389113,108760.0,108740.0,0.29388797]
[1761044217901,0.18390804,108750.0,108740.0,0.27474396]
[1761044218613,0.18390804,108750.0,108740.0,0.27374396]
[1761044218904,0.18390804,108750.0,108740.0,0.27474396]
[1761044219414,0.18390804,108750.0,108740.0,0.27374396]
[1761044220518,0.18389152,108760.0,108740.0,0.27374396]
[1761044220738,0.18389152,108760.0,108740.0,0.08981901]
[1761044220948,0.18390804,108750.0,108740.0,0.27374259]
[1761044221153,0.18390804,108750.0,108740.0,0.27474259]
[1761044221552,0.18390804,108750.0,108740.0,0.27374259]
[1761044221955,0.18390804,108750.0,108740.0,0.27474259]
[1761044222489,0.18390804,108750.0,108740.0,0.27374259]
[1761044222905,0.18390804,108750.0,108740.0,0.27474259]
[1761044226430,0.18390804,108750.0,108740.0,0.27474396]
[1761044226876,0.18390804,108750.0,108740.0,0.27649548]
[1761044228017,0.88649018,108760.0,108740.0,0.27649548]
[1761044228242,0.18390804,108750.0,108740.0,0.27474396]
[1761044228843,0.18390804,108750.0,108740.0,0.09081901]
[1761044229052,0.18390804,108750.0,108740.0,0.08981901]
[1761044229275,0.18390804,108750.0,108740.0,0.27374396]
[1761044229480,0.18390804,108750.0,108740.0,0.27474396]
[1761044231569,0.18390804,108750.0,108740.0,0.27374396]
[1761044231814,0.18390804,108750.0,108740.0,0.27474396]
[1761044233921,0.18390804,108750.0,108740.0,0.09081901]
[1761044234351,0.18390804,108750.0,108740.0,0.09257053]
[1761044234757,0.18390804,108750.0,108740.0,0.18667647]
[1761044235921,0.18389152,108760.0,108740.0,0.18667647]
[1761044236169,0.18389152,108760.0,108740.0,0.18492495]
[1761044236379,0.18390804,108750.0,108740.0,0.18492495]
[1761044237485,0.18390804,108750.0,108740.0,0.001]
[1761044237707,1.0060667,108750.0,108740.0,0.001]
[1761044237923,0.18392495,108740.0,108730.0,0.00054827]
[1761044238141,0.88652361,108740.0,108730.0,0.00054827]
[1761044238788,0.58655688,108740.0,108730.0,0.00054827]
[1761044239226,0.58655688,108740.0,108730.0,0.00154827]
[1761044240950,0.98919855,108740.0,108730.0,0.00154827]
[1761044241604,0.98919855,108740.0,108730.0,0.00054827]
[1761044242026,0.98919855,108740.0,108730.0,0.00265028]
[1761044242231,0.98919855,108740.0,108730.0,0.00365028]
[1761044242662,0.58656175,108740.0,108730.0,0.00365028]
[1761044242904,0.98919855,108740.0,108730.0,0.00365028]
[1761044246018,0.4026368,108740.0,108730.0,0.18759215]
[1761044246236,0.71524287,108760.0,108740.0,0.18390856]
[1761044246440,0.58653655,108760.0,108750.0,0.18390804]
[1761044246672,0.98917335,108760.0,108750.0,0.18390804]
[1761044247134,0.98917335,108760.0,108740.0,0.30342856]
[1761044247348,0.58653655,108760.0,108740.0,0.30342856]
[1761044248910,0.18390804,108750.0,108740.0,0.30342856]
[1761044249136,0.58654484,108750.0,108740.0,0.11952]
[1761044249785,0.58654484,108750.0,108740.0,0.30344495]
[1761044249993,0.58654484,108750.0,108740.0,0.11952]
[1761044250175,0.18392495,108740.0,108730.0,0.00054827]
[1761044250374,0.98919855,108740.0,108730.0,0.12002827]
[1761044251537,1.32919855,108740.0,108730.0,0.00054827]
[1761044252780,1.32919855,108740.0,108730.0,0.00154827]
[1761044253005,1.35168476,108740.0,108730.0,0.00154827]
[1761044253210,1.84414057,108740.0,108730.0,0.00365028]
[1761044253429,1.82165436,108740.0,108730.0,0.00365028]
[1761044255072,1.82165436,108740.0,108730.0,0.00265028]
[1761044256868,1.41901756,108740.0,108730.0,0.00265028]
[1761044257302,1.82165436,108740.0,108730.0,0.00265028]
[1761044258515,4.82165436,108740.0,108730.0,1e-08]
[1761044258740,4.91147337,108740.0,108730.0,1e-08]
[1761044259915,4.94765565,108740.0,108730.0,1e-08]
[1761044260698,4.97531815,108740.0,108730.0,1e-08]
[1761044261815,4.97631815,108740.0,108730.0,1e-08]
[1761044262754,5.00589914,108740.0,108730.0,1e-08]
[1761044263193,4.88649914,108740.0,108730.0,1e-08]
[1761044263366,5.00585914,108740.0,108730.0,1e-08]
[1761044264936,3.64240646,108740.0,108730.0,1e-08]
[1761044265140,4.56704006,108740.0,108730.0,1e-08]
[1761044265513,0.0286625,108740.0,108730.0,0.9312749]
[1761044265761,0.21661493,108800.0,108740.0,0.37618228]
[1761044265936,0.5956799,108810.0,108780.0,0.58649149]
[1761044266142,0.1930431,108810.0,108790.0,0.1838399]
[1761044266354,0.18382352,108800.0,108780.0,0.68550336]
[1761044266533,0.58646032,108800.0,108780.0,0.28286656]
[1761044266980,0.18384042,108790.0,108780.0,0.08981901]
[1761044267183,0.18384042,108790.0,108780.0,0.27367633]
[1761044268227,0.18384042,108790.0,108780.0,0.27467633]
[1761044268428,0.18384042,108790.0,108780.0,0.27367633]
[1761044268864,0.18384042,108790.0,108780.0,0.27467633]
[1761044269810,0.18384042,108790.0,108780.0,0.09181901]
[1761044270414,0.18384042,108790.0,108780.0,0.27567633]
[1761044270790,0.18384042,108790.0,108780.0,0.09181901]
[1761044271307,0.18384042,108790.0,108780.0,0.27367633]
[1761044271910,0.18384042,108790.0,108780.0,0.27467633]
[1761044272787,0.18384042,108790.0,108780.0,0.27567633]
[1761044273157,0.18384042,108790.0,108780.0,0.002]
[1761044276026,0.18384042,108790.0,108780.0,0.18585732]
[1761044276256,0.18384042,108790.0,108780.0,0.002]
[1761044276462,0.18384042,108790.0,108780.0,0.18585732]
[1761044276804,0.1843166,108800.0,108780.0,0.18585732]
[1761044277434,0.18384042,108790.0,108780.0,0.18585732]
[1761044277664,0.18384042,108790.0,108780.0,0.18485732]
[1761044277887,0.18384042,108790.0,108780.0,0.20224305]
[1761044278097,0.18384042,108790.0,108780.0,0.18485732]
[1761044278277,0.18384042,108790.0,108780.0,0.20424305]
[1761044278487,0.18384042,108790.0,108780.0,0.18585732]
[1761044278716,0.1843166,108800.0,108780.0,0.18485732]
[1761044278920,0.1843166,108800.0,108780.0,0.20324305]
[1761044279127,0.1843166,108800.0,108790.0,0.18384042]
[1761044280406,0.1843166,108800.0,108780.0,0.27567633]
[1761044280821,0.18384042,108790.0,108780.0,0.27567633]
[1761044281033,0.18384042,108790.0,108780.0,0.27467633]
[1761044281760,0.18384042,108790.0,108780.0,0.27367633]
[1761044282182,0.18384042,108790.0,108780.0,0.27467633]
[1761044282411,0.18384042,108790.0,108780.0,0.27367633]
[1761044282621,0.1843166,108800.0,108790.0,0.18384042]
[1761044283481,0.1843166,108800.0,108780.0,0.27567633]
[1761044283691,0.18384042,108790.0,108780.0,0.27467633]
[1761044283876,0.18384042,108790.0,108780.0,0.27367633]
[1761044285985,0.18384042,108790.0,108780.0,0.27467633]
[1761044286463,0.18384042,108790.0,108780.0,0.27567633]
[1761044290548,0.18384042,108790.0,108780.0,0.002]
[1761044290837,0.58606258,108790.0,108780.0,0.002]
[1761044292210,0.58606258,108790.0,108780.0,0.02038573]
[1761044294465,0.18384042,108790.0,108780.0,0.02038573]
[1761044294669,0.58606258,108790.0,108780.0,0.02038573]
[1761044296167,0.58606258,108790.0,108780.0,0.002]
[1761044296595,0.58606258,108790.0,108780.0,0.02038573]
[1761044297138,0.18384042,108790.0,108780.0,0.02038573]
[1761044297356,1.10740474,108790.0,108780.0,0.002]
[1761044297582,1.52444266,108790.0,108780.0,0.002]
[1761044297791,1.44740474,108790.0,108780.0,0.002]
[1761044298338,0.64296042,108790.0,108780.0,0.002]
[1761044298632,1.53722375,108790.0,108780.0,0.002]
[1761044298837,0.18389113,108760.0,108750.0,0.31222199]
[1761044299033,0.58611329,108760.0,108750.0,0.402041]
[1761044300019,0.58626106,108760.0,108750.0,0.403041]
[1761044300248,0.58626106,108760.0,108750.0,0.284921]
[1761044300451,0.58626106,108760.0,108750.0,0.404041]
[1761044300654,0.1840389,108760.0,108750.0,0.404041]
[1761044300860,0.58643529,108760.0,108750.0,0.39484705]
[1761044301075,0.58643529,108760.0,108750.0,0.002]
[1761044302477,0.92643529,108760.0,108750.0,0.002]
[1761044302681,0.92643529,108760.0,108750.0,0.001]
[1761044302893,0.18392495,108740.0,108730.0,0.11908]
[1761044303095,0.18392495,108740.0,108730.0,0.20889901]
[1761044303761,0.18392495,108740.0,108730.0,0.08981901]
[1761044304041,0.18394187,108730.0,108720.0,0.30338875]
[1761044304254,0.18394187,108730.0,108720.0,0.39320776]
[1761044304470,0.18392495,108740.0,108720.0,0.39320776]
[1761044304654,0.18394187,108730.0,108720.0,0.39320611]
[1761044304865,0.18392495,108740.0,108720.0,0.39320611]
[1761044305004,0.18394187,108730.0,108720.0,0.39320611]
[1761044305870,0.18394187,108730.0,108720.0,0.20924949]
[1761044306073,0.18394187,108730.0,108720.0,0.39420828]
[1761044306451,0.18394187,108730.0,108720.0,0.39520828]
[1761044307544,0.18394187,108730.0,108720.0,0.21124949]
[1761044307770,0.18394187,108730.0,108720.0,0.12143048]
[1761044308224,0.18394187,108730.0,108720.0,0.00235048]
[1761044308429,0.88679752,108730.0,108720.0,0.00235048]
[1761044309084,0.18394187,108730.0,108720.0,0.00235048]
[1761044309294,0.88679752,108730.0,108720.0,0.00235048]
[1761044310148,1.00587752,108730.0,108720.0,0.00235048]
[1761044310365,1.00587752,108730.0,108720.0,0.00135048]
[1761044310569,1.00587752,108730.0,108720.0,0.00035048]
[1761044310748,1.00587752,108730.0,108720.0,0.00235048]
[1761044310983,0.30302187,108730.0,108720.0,0.00235048]
[1761044311421,1.00587752,108730.0,108720.0,0.00235048]
[1761044312111,0.30302187,108730.0,108720.0,0.00235048]
[1761044314288,1.00587752,108730.0,108720.0,0.00235048]
[1761044315330,0.30302187,108730.0,108720.0,0.00235048]
[1761044316153,1.00587752,108730.0,108720.0,0.00235048]
[1761044323468,0.30302187,108730.0,108720.0,0.00235048]
[1761044323980,1.00587752,108730.0,108720.0,0.00235048]
[1761044324740,0.70570936,108730.0,108720.0,0.00235048]
[1761044326120,0.30302187,108730.0,108720.0,0.00235048]
[1761044326326,0.70570936,108730.0,108720.0,0.00235048]
[1761044329180,0.30302187,108730.0,108720.0,0.00235048]
[1761044329393,0.70570936,108730.0,108720.0,0.00235048]
[1761044329799,0.30302187,108730.0,108720.0,0.00235048]
[1761044330019,0.70570936,108730.0,108720.0,0.00235048]
[1761044332905,1.04570936,108730.0,108720.0,0.00235048]
[1761044333881,1.53821586,108730.0,108720.0,0.00235048]
[1761044334089,1.35427399,108730.0,108720.0,0.00235048]
[1761044334256,1.53821586,108730.0,108720.0,0.00235048]
[1761044334701,1.13552837,108730.0,108720.0,0.00235048]
[1761044335095,1.53821586,108730.0,108720.0,0.00235048]
[1761044335379,1.13552837,108730.0,108720.0,0.00235048]
[1761044336833,1.16293779,108730.0,108720.0,0.00235048]
[1761044338829,1.13552837,108730.0,108720.0,0.00235048]
[1761044340449,0.73284088,108730.0,108720.0,0.00235048]
[1761044340866,1.13552837,108730.0,108720.0,0.00235048]
[1761044342026,0.73284088,108730.0,108720.0,0.00235048]
[1761044342256,1.13552837,108730.0,108720.0,0.00235048]
[1761044345897,0.52394187,108730.0,108720.0,0.00235048]
[1761044346120,1.04550936,108730.0,108720.0,0.00235048]
[1761044346958,1.13532837,108730.0,108720.0,0.00235048]
[1761044352664,1.19039353,108730.0,108720.0,0.00235048]
[1761044352877,1.13532837,108730.0,108720.0,0.00235048]
[1761044353740,1.13032837,108730.0,108720.0,0.00235048]
[1761044355656,4.53301586,108730.0,108720.0,0.00235048]
[1761044355877,0.18399264,108700.0,108690.0,8e-05]
[1761044356087,1.10816762,108700.0,108690.0,8e-05]
[1761044356294,4.04548013,108700.0,108690.0,0.00858796]
[1761044357228,4.04548013,108700.0,108690.0,0.00958796]
[1761044357229,4.04557065,108700.0,108690.0,0.00958796]
[1761044357437,4.04557065,108700.0,108690.0,0.01058796]
[1761044357845,4.44825814,108700.0,108690.0,0.01058796]
[1761044358053,4.04557065,108700.0,108690.0,0.01058796]
[1761044358693,4.04557065,108700.0,108690.0,0.00958796]
[1761044359117,4.04557065,108700.0,108690.0,0.01058796]
[1761044360441,9.052e-05,108700.0,108690.0,0.18608956]
[1761044360652,0.18408316,108700.0,108690.0,0.18608956]
[1761044360865,0.58694385,108700.0,108690.0,0.18608956]
[1761044361093,0.98980454,108700.0,108690.0,0.18608956]
[1761044361520,0.98980454,108700.0,108690.0,0.18714129]
[1761044361731,0.18408316,108700.0,108690.0,0.18714129]
[1761044361942,0.98980454,108700.0,108690.0,0.18714129]
[1761044362803,0.98980454,108700.0,108690.0,0.00313173]
[1761044365246,0.30284316,108700.0,108690.0,0.20554224]
[1761044365456,0.70570385,108700.0,108690.0,0.18714129]
[1761044366980,1.10856454,108700.0,108690.0,0.00313173]
[1761044367838,1.19838355,108700.0,108690.0,0.00313173]
[1761044368055,1.10856454,108700.0,108690.0,0.00313173]
[1761044369496,0.30284316,108700.0,108690.0,0.00313173]
[1761044369734,1.10856454,108700.0,108690.0,0.00313173]
[1761044370347,0.30284316,108700.0,108690.0,0.00313173]
[1761044370591,1.10856454,108700.0,108690.0,0.00313173]
[1761044372378,0.30284316,108700.0,108690.0,0.00313173]
[1761044372674,1.10856454,108700.0,108690.0,0.00313173]
[1761044377802,0.30284316,108700.0,108690.0,0.00313173]
[1761044378014,1.10856454,108700.0,108690.0,0.00313173]
[1761044378556,0.30284316,108700.0,108690.0,0.00313173]
[1761044378759,1.10856454,108700.0,108690.0,0.00313173]
[1761044386853,1.13640997,108700.0,108690.0,0.00313173]
[1761044387060,1.10856454,108700.0,108690.0,0.00313173]
[1761044387277,0.30284316,108700.0,108690.0,0.00313173]
[1761044387485,1.10856454,108700.0,108690.0,0.00313173]
[1761044388134,0.30284316,108700.0,108690.0,0.00313173]
[1761044388337,1.10856454,108700.0,108690.0,0.00313173]
[1761044388550,0.30284316,108700.0,108690.0,0.00313173]
[1761044388752,1.10856454,108700.0,108690.0,0.00313173]
[1761044393813,9.052e-05,108700.0,108690.0,0.18714129]
[1761044394017,9.052e-05,108700.0,108690.0,0.20554224]
[1761044394221,0.58694385,108700.0,108690.0,0.18714129]
[1761044395439,0.18408316,108700.0,108690.0,0.18714129]
[1761044395713,0.58694385,108700.0,108690.0,0.18714129]
[1761044395921,9.052e-05,108700.0,108690.0,0.18714129]
[1761044396300,0.58694385,108700.0,108690.0,0.18714129]
[1761044396556,0.40295121,108700.0,108690.0,0.18714129]
[1761044396908,0.58694385,108700.0,108690.0,0.18714129]
[1761044399121,0.18408316,108700.0,108690.0,0.18714129]
[1761044399315,0.58694385,108700.0,108690.0,0.18714129]
[1761044399984,0.58694385,108700.0,108690.0,0.00313173]
[1761044400208,0.98980454,108700.0,108690.0,0.00313173]
[1761044400418,1.44832454,108700.0,108690.0,0.00313173]
[1761044400593,1.53814355,108700.0,108690.0,0.01164471]
[1761044401027,4.94100424,108700.0,108690.0,0.01164471]
[1761044401227,4.94100424,108700.0,108690.0,0.00313173]
[1761044402577,4.94100424,108700.0,108690.0,0.00213173]
[1761044402786,5.03082325,108700.0,108690.0,0.00213173]
[1761044403301,4.53814355,108700.0,108690.0,0.00213173]
[1761044403515,4.41962355,108700.0,108690.0,0.00213173]
[1761044403767,0.18408316,108700.0,108690.0,0.00963569]
[1761044403982,9.052e-05,108700.0,108690.0,0.20354224]
[1761044404204,0.18408316,108700.0,108690.0,0.20354224]
[1761044404643,0.58694385,108700.0,108690.0,0.18514129]
[1761044404864,0.58694385,108700.0,108690.0,0.00113173]
[1761044405094,0.80572138,108700.0,108690.0,0.00113173]
[1761044405319,1.41953303,108700.0,108690.0,0.00963416]
[1761044405513,1.41953303,108700.0,108690.0,0.00963422]
[1761044405770,1.41953303,108700.0,108690.0,0.01063422]
[1761044405992,4.82239372,108700.0,108690.0,0.01063422]
[1761044406208,4.83742339,108700.0,108690.0,0.01063422]
[1761044406459,4.83742339,108700.0,108690.0,0.00213173]
[1761044407335,4.83742339,108700.0,108690.0,0.00113173]
[1761044408124,0.18407731,108650.0,108640.0,0.0004]
[1761044408356,1.1980577,108650.0,108640.0,0.00890846]
[1761044409003,1.22573835,108650.0,108640.0,0.00890846]
[1761044409226,0.42001697,108650.0,108640.0,0.00890846]
[1761044409432,1.22573835,108650.0,108640.0,0.00940316]
[1761044409987,0.18406037,108660.0,108640.0,0.19349741]
[1761044410204,0.18406037,108660.0,108640.0,0.28331642]
[1761044410205,0.70536836,108660.0,108640.0,0.28331642]
[1761044410418,0.70536836,108660.0,108650.0,0.01840773]
[1761044410692,0.58692836,108660.0,108650.0,0.20248504]
[1761044410902,0.98978905,108660.0,108650.0,0.20248504]
[1761044411104,0.98978905,108660.0,108650.0,0.01840773]
[1761044411319,0.18407731,108650.0,108640.0,0.27480796]
[1761044411526,0.586938,108650.0,108640.0,0.09071371]
[1761044411738,0.586938,108650.0,108640.0,0.29321738]
[1761044411953,0.40286069,108650.0,108640.0,0.27480796]
[1761044412165,0.58692836,108660.0,108640.0,0.27480796]
[1761044412385,0.19326254,108670.0,108650.0,0.20248504]
[1761044412606,0.61460973,108680.0,108660.0,0.18406037]
[1761044412814,0.58688929,108680.0,108670.0,0.20244777]
[1761044413023,0.58688929,108680.0,108670.0,0.01840434]
[1761044413240,0.58688929,108680.0,108660.0,0.39231938]
[1761044413438,0.40286069,108670.0,108660.0,0.39231938]
[1761044413680,0.0421008,108700.0,108680.0,0.18402649]
[1761044413889,0.61052662,108720.0,108700.0,0.18399264]
[1761044414102,0.58681975,108720.0,108710.0,0.18397571]
[1761044414324,0.58681975,108720.0,108700.0,0.27381165]
[1761044414325,0.18397571,108710.0,108700.0,0.08981901]
[1761044414571,0.5868364,108710.0,108700.0,0.27381165]
[1761044414782,0.18397571,108710.0,108700.0,0.39240005]
[1761044415890,0.18397571,108710.0,108700.0,0.20940741]
[1761044416085,0.18397571,108710.0,108700.0,0.39340005]
[1761044416288,0.18397571,108710.0,108700.0,0.20940741]
[1761044416489,0.18397571,108710.0,108700.0,0.27496005]
[1761044418117,0.18397571,108710.0,108700.0,0.26996005]
[1761044418917,0.6416295,108710.0,108700.0,0.0011484]
[1761044420601,0.6416295,108710.0,108700.0,0.0001484]
[1761044420805,4.2743439,108710.0,108700.0,0.0001484]
[1761044420966,4.2743439,108710.0,108700.0,0.0011484]
[1761044421177,4.30201012,108710.0,108700.0,0.0011484]
[1761044421725,4.30201012,108710.0,108700.0,0.0001484]
[1761044422657,4.54801639,108710.0,108700.0,0.0001484]
[1761044425062,0.64146094,108710.0,108700.0,0.0001484]
[1761044425272,1.25530199,108710.0,108700.0,0.0001484]
[1761044425450,1.37366199,108710.0,108700.0,0.0001484]
[1761044425653,0.21164193,108710.0,108700.0,0.0001484]
[1761044425900,0.18397571,108710.0,108700.0,0.0001484]
[1761044426055,0.18397571,108710.0,108700.0,0.18414104]
[1761044426483,0.18397571,108710.0,108700.0,0.0001484]
[1761044429548,0.32998125,108720.0,108700.0,0.08996741]
[1761044429771,0.18397571,108710.0,108700.0,0.08996741]
[1761044429997,0.18397571,108710.0,108700.0,0.27396005]
[1761044431430,0.97745478,108710.0,108700.0,0.0001484]
[1761044431645,0.88763577,108710.0,108700.0,0.0011484]
[1761044432256,0.88763577,108710.0,108700.0,0.0021484]
[1761044439457,4.43573478,108710.0,108700.0,0.0021484]
[1761044439944,1.43573478,108710.0,108700.0,0.0021484]
[1761044440363,1.43573478,108710.0,108700.0,0.0011484]
[1761044441819,1.43573478,108710.0,108700.0,0.0001484]
[1761044442697,1.43573478,108710.0,108700.0,0.0011484]
[1761044442912,0.18397571,108710.0,108700.0,0.18514104]
[1761044443131,0.18397571,108710.0,108700.0,0.0011484]
[1761044445357,0.88763577,108710.0,108700.0,0.0011484]
[1761044449034,1.31745478,108710.0,108700.0,0.0011484]
[1761044449242,4.31745478,108710.0,108700.0,0.0011484]
[1761044450112,4.35363706,108710.0,108700.0,0.0011484]
[1761044450446,4.38130701,108710.0,108700.0,0.0011484]
[1761044450852,4.38130701,108710.0,108700.0,1e-08]
[1761044451052,0.18407731,108650.0,108640.0,0.0004]
[1761044451253,0.18407731,108650.0,108640.0,0.29321738]
[1761044451487,0.18407731,108650.0,108640.0,0.27621117]
[1761044451903,0.18407731,108650.0,108640.0,0.29706927]
[1761044452715,0.18407731,108650.0,108640.0,0.27621117]
[1761044453112,0.18406037,108660.0,108640.0,0.27621117]
[1761044453316,0.18406037,108660.0,108640.0,0.27480796]
[1761044453523,0.18407731,108650.0,108640.0,0.27480796]
[1761044454119,0.18407731,108650.0,108640.0,0.27580796]
[1761044454520,0.18407731,108650.0,108640.0,0.09271371]
[1761044454821,0.18407731,108650.0,108640.0,0.11112313]
[1761044455610,0.18407731,108650.0,108640.0,0.0028947]
[1761044456349,0.18407731,108650.0,108640.0,0.18698895]
[1761044456755,0.18407731,108650.0,108640.0,0.0028947]
[1761044457345,0.18407731,108650.0,108640.0,0.18698895]
[1761044457571,0.18407731,108650.0,108640.0,0.0028947]
[1761044459045,0.88773737,108650.0,108640.0,0.0028947]
[1761044459263,0.18407731,108650.0,108640.0,0.00429791]
[1761044459468,0.88773737,108650.0,108640.0,0.00429791]
[1761044459957,0.97755638,108650.0,108640.0,0.00429791]
[1761044460132,1.09579638,108650.0,108640.0,0.00429791]
[1761044460710,1.09579638,108650.0,108640.0,0.00329791]
[1761044460916,1.09579638,108650.0,108640.0,0.00229791]
[1761044461162,4.2068799,108650.0,108640.0,0.00229791]
[1761044462642,1.18561539,108650.0,108640.0,0.00229791]
[1761044463118,1.09579638,108650.0,108640.0,0.00229791]
[1761044463316,0.88773737,108650.0,108640.0,0.00229791]
[1761044463522,1.00593737,108650.0,108640.0,0.00229791]
[1761044463724,4.09575638,108650.0,108640.0,0.00229791]
[1761044465109,4.47193866,108650.0,108640.0,1e-08]
[1761044465312,4.56175767,108650.0,108640.0,1e-08]
[1761044468111,4.56275767,108650.0,108640.0,1e-08]
[1761044468684,3.85909761,108650.0,108640.0,1e-08]
[1761044468885,4.56275767,108650.0,108640.0,1e-08]
[1761044471738,0.97855638,108650.0,108640.0,1e-08]
[1761044471949,1.09675638,108650.0,108640.0,1e-08]
[1761044472910,4.09675638,108650.0,108640.0,1e-08]
[1761044473117,4.43675638,108650.0,108640.0,1e-08]
[1761044477856,4.47293866,108650.0,108640.0,1e-08]
[1761044477977,4.56275767,108650.0,108640.0,1e-08]
[1761044478295,4.56644929,108650.0,108640.0,1e-08]
[1761044478496,4.5808881,108650.0,108640.0,1e-08]
[1761044482890,4.79447604,108650.0,108640.0,1e-08]
[1761044483539,0.1841112,108630.0,108620.0,1e-08]
[1761044483749,3.94053322,108630.0,108620.0,9.053e-05]
[1761044485456,4.28053322,108630.0,108620.0,9.053e-05]
[1761044486770,4.29497305,108630.0,108620.0,9.053e-05]
[1761044487698,3.56031043,108620.0,108610.0,1e-08]
[1761044487902,0.18416206,108600.0,108590.0,0.0002]
[1761044488110,0.18416206,108600.0,108590.0,0.00034855]
[1761044488111,0.88759732,108600.0,108590.0,0.00034855]
[1761044488556,0.90886854,108600.0,108590.0,0.00034855]
[1761044488776,0.88759732,108600.0,108590.0,0.00034855]
[1761044489416,0.88759732,108600.0,108590.0,0.00134855]
[1761044489795,0.88759732,108600.0,108590.0,0.00310369]
[1761044490231,0.85076507,108600.0,108590.0,0.00310369]
[1761044490710,0.85076507,108600.0,108590.0,0.00210369]
[1761044492481,0.64278606,108600.0,108590.0,0.00210369]
[1761044492729,0.18416206,108600.0,108590.0,0.00210369]
[1761044493804,0.18416206,108600.0,108590.0,0.02052159]
[1761044494023,0.18416206,108600.0,108590.0,0.20470061]
[1761044494245,0.18416206,108600.0,108590.0,0.18628271]
[1761044494448,0.18416206,108600.0,108590.0,0.00210369]
[1761044494766,0.18416206,108600.0,108580.0,0.0004]
[1761044494767,3.18417902,108590.0,108580.0,0.0004]
[1761044494976,3.73277017,108590.0,108580.0,0.0004]
[1761044495124,0.18432716,108590.0,108580.0,0.0004]
[1761044495329,0.30244716,108590.0,108580.0,0.0004]
[1761044495544,0.76107116,108590.0,108580.0,0.0004]
[1761044496141,0.76107116,108590.0,108580.0,0.0014]
[1761044497967,0.73277017,108590.0,108580.0,0.0014]
[1761044500368,0.73277017,108590.0,108580.0,0.00175115]
[1761044501921,0.64295116,108590.0,108580.0,0.00175115]
[1761044502950,0.18432716,108590.0,108580.0,0.20436672]
[1761044503191,0.00014814,108590.0,108580.0,0.18594713]
[1761044503835,0.00014814,108590.0,108580.0,0.27576614]
[1761044505347,0.18432716,108590.0,108580.0,0.27576614]
[1761044506339,0.00014814,108590.0,108580.0,0.27576614]
[1761044507165,0.18432716,108590.0,108580.0,0.27576614]
[1761044508767,0.58800496,108590.0,108580.0,0.27576614]
[1761044509749,0.58800496,108590.0,108580.0,0.09157016]
[1761044509969,0.58800496,108590.0,108580.0,0.00175115]
[1761044510825,0.18432716,108590.0,108580.0,0.00175115]
[1761044511088,0.58800496,108590.0,108580.0,0.02017074]
[1761044511433,0.58800496,108590.0,108580.0,0.00175115]
[1761044511642,0.58800496,108590.0,108580.0,0.02017074]
[1761044514425,0.00014814,108590.0,108580.0,0.29418573]
[1761044514738,0.00014814,108590.0,108580.0,0.27576614]
[1761044515354,0.58800496,108590.0,108580.0,0.27576614]
[1761044515567,0.18432716,108590.0,108580.0,0.27576614]
[1761044516322,0.58800496,108590.0,108580.0,0.27576614]
[1761044517125,0.41151517,108590.0,108580.0,0.27576614]
[1761044519862,0.41151517,108590.0,108580.0,0.11979115]
[1761044520520,0.41151517,108590.0,108580.0,0.30398713]
[1761044520739,0.41151517,108590.0,108580.0,0.11979115]
[1761044520960,0.41151517,108590.0,108580.0,0.30398713]
[1761044521393,0.58785682,108590.0,108580.0,0.30398713]
[1761044521609,0.58785682,108590.0,108580.0,0.11979115]
[1761044521831,0.58785682,108590.0,108580.0,0.32240672]
[1761044522076,0.58785682,108590.0,108580.0,0.30398713]
[1761044523218,0.58785682,108590.0,108580.0,0.11979115]
[1761044523444,0.99153462,108590.0,108580.0,0.00175115]
[1761044523692,0.58785682,108590.0,108580.0,0.00175115]
[1761044523916,0.99153462,108590.0,108580.0,0.00175115]
[1761044524418,0.67767583,108590.0,108580.0,0.00175115]
[1761044524653,0.58785682,108590.0,108580.0,0.00175115]
[1761044525608,0.99153462,108590.0,108580.0,0.00175115]
[1761044525820,0.58785682,108590.0,108580.0,0.00175115]
[1761044526687,0.18417902,108590.0,108580.0,0.00175115]
[1761044526909,0.58785682,108590.0,108580.0,0.00175115]
[1761044529155,1.1302219,108590.0,108580.0,0.00175115]
[1761044531185,1.15791903,108590.0,108580.0,0.00175115]
[1761044532072,0.61555395,108590.0,108580.0,0.00175115]
[1761044532366,1.13723175,108590.0,108580.0,0.00175115]
[1761044532726,1.15636039,108590.0,108580.0,0.00175115]
[1761044533418,1.13723175,108590.0,108580.0,0.00175115]
[1761044535238,1.10953462,108590.0,108580.0,0.00175115]
[1761044535434,0.58785682,108590.0,108580.0,0.00175115]
[1761044535777,1.10953462,108590.0,108580.0,0.00175115]
[1761044536618,0.58785682,108590.0,108580.0,0.00175115]
[1761044537056,0.18417902,108590.0,108580.0,0.00175115]
[1761044537302,0.58784076,108600.0,108580.0,0.20436672]
[1761044537510,0.4036778,108590.0,108580.0,0.18594713]
[1761044537726,4.57485044,108590.0,108580.0,0.00175115]
[1761044538360,4.17117264,108590.0,108580.0,0.00175115]
[1761044538769,4.19887136,108590.0,108580.0,0.00075115]
[1761044540894,4.21331687,108590.0,108580.0,0.00075115]
[1761044542934,3.80987336,108590.0,108580.0,0.00075115]
[1761044543147,3.81087336,108590.0,108580.0,0.00075115]
[1761044550028,4.21478545,108590.0,108580.0,0.00075115]
[1761044550845,4.20033994,108590.0,108580.0,0.00075115]
[1761044554768,3.70660884,108590.0,108580.0,0.00075115]
[1761044561523,4.11052093,108590.0,108580.0,0.00075115]
[1761044564027,3.70660884,108590.0,108580.0,0.00075115]
[1761044564276,3.72105476,108590.0,108580.0,0.00075115]
[1761044564649,3.70660884,108590.0,108580.0,0.00075115]
[1761044564801,3.79642785,108590.0,108580.0,0.00075115]
[1761044567117,4.19983994,108590.0,108580.0,0.00075115]
[1761044567734,4.21428584,108590.0,108580.0,0.00075115]
[1761044569559,3.81037375,108590.0,108580.0,0.00075115]
[1761044571926,3.18419598,108580.0,108570.0,0.0002]
[1761044572133,4.28953818,108580.0,108570.0,0.00034814]
[1761044572743,4.31723899,108580.0,108570.0,0.00034814]
[1761044577754,4.31723899,108580.0,108570.0,0.00069933]
[1761044584281,4.28953818,108580.0,108570.0,0.00069933]